bitfinex/quotes_SOLUSD_20220119
["timestamp","ask_amount","ask_price","bid_price","bid_amount"]
[1642619774225,3.173,136.88,136.81,0.25]
[1642619774429,41.0134185,136.89,136.82,10.51]
[1642619775125,41.0134185,136.89,136.83,0.25]
[1642619775329,41.0134185,136.89,136.84,10.51]
[1642619777028,41.0134185,136.89,136.85,0.25]
[1642619777225,41.0134185,136.89,136.86,10.51]
[1642619778428,6.06439994,136.88,136.86,10.51]
[1642619778628,41.0134185,136.89,136.86,10.51]
[1642619779229,0.25,136.88,136.86,10.51]
[1642619779429,41.0134185,136.89,136.86,10.51]
[1642619780031,6.06439994,136.88,136.86,10.51]
[1642619780431,6.06439994,136.88,136.83,10.51]
[1642619780631,0.25,136.87,136.81,10.51]
[1642619781734,2.923,136.86,136.81,10.51]
[1642619781933,2.923,136.86,136.74,13.433]
[1642619782136,0.25,136.85,136.74,13.433]
[1642619782333,2.924,136.84,136.74,13.433]
[1642619782534,43.93848153,136.83,136.74,13.433]
[1642619782735,44.18848153,136.83,136.74,13.433]
[1642619783136,44.18848153,136.83,136.75,6.25]
[1642619783334,2.924,136.82,136.75,6.25]
[1642619783934,2.924,136.82,136.76,10.51]
[1642619784134,43.93848153,136.83,136.77,0.25]
[1642619784739,43.93848153,136.83,136.77,10.76]
[1642619785736,43.93848153,136.83,136.77,10.51]
[1642619786738,43.93848153,136.83,136.78,0.25]
[1642619786969,43.93848153,136.83,136.77,10.51]
[1642619787342,0.25,136.82,136.77,10.51]
[1642619788139,43.93848153,136.83,136.77,10.51]
[1642619789741,0.25,136.82,136.77,10.51]
[1642619789944,3.174,136.82,136.77,10.51]
[1642619791042,3.174,136.82,136.78,0.25]
[1642619791043,0.25,136.82,136.78,0.25]
[1642619791245,0.25,136.82,136.75,10.51]
[1642619791545,0.25,136.82,136.76,6.0]
[1642619791744,3.174,136.82,136.76,6.25]
[1642619792643,0.25,136.82,136.76,6.25]
[1642619793744,3.174,136.82,136.76,6.25]
[1642619794743,76.484,136.82,136.76,6.25]
[1642619794946,76.484,136.82,136.76,0.25]
[1642619795147,76.484,136.82,136.74,6.0]
[1642619795348,76.484,136.82,136.7,10.51]
[1642619795645,76.484,136.82,136.71,6.0]
[1642619797648,76.484,136.82,136.72,0.25]
[1642619798845,76.484,136.82,136.71,6.0]
[1642619800349,76.484,136.82,136.72,0.25]
[1642619803057,76.484,136.82,136.71,6.0]
[1642619803458,76.484,136.82,136.71,5.5]
[1642619806862,76.484,136.82,136.68,2.924]
[1642619806863,6.0,136.81,136.68,2.924]
[1642619807063,0.31156954,136.79,136.68,10.51]
[1642619807361,2.924,136.78,136.65,24.8572]
[1642619807560,76.234,136.78,136.64,10.51]
[1642619807762,42.85609383,136.77,136.64,10.51]
[1642619807961,2.926,136.76,136.64,10.51]
[1642619808166,0.25,136.75,136.65,0.25]
[1642619808361,0.25,136.75,136.65,6.25]
[1642619808560,0.25,136.75,136.66,22.6149]
[1642619810690,73.31,136.74,136.66,22.6149]
[1642619810886,47.85367205,136.73,136.67,0.25]
[1642619811088,48.10367205,136.73,136.67,0.25]
[1642619811888,48.10367205,136.73,136.66,22.6149]
[1642619814590,2.926,136.74,136.67,0.25]
[1642619814792,2.926,136.77,136.67,0.25]
[1642619815093,2.924,136.78,136.68,2.924]
[1642619815291,0.25,136.76,136.69,0.25]
[1642619815896,0.25,136.76,136.67,16.51]
[1642619816100,0.25,136.76,136.69,0.25]
[1642619816294,0.25,136.76,136.68,24.3284]
[1642619816295,0.25,136.77,136.68,24.3284]
[1642619816493,2.924,136.75,136.68,24.3284]
[1642619816692,0.25,136.74,136.68,24.3284]
[1642619816893,2.924,136.76,136.68,24.3284]
[1642619817092,0.25,136.75,136.68,24.3284]
[1642619817294,2.924,136.74,136.68,24.3284]
[1642619817593,2.924,136.74,136.65,10.51]
[1642619817794,0.25,136.73,136.66,0.25]
[1642619818897,2.926,136.72,136.66,0.25]
[1642619819295,0.25,136.71,136.66,0.25]
[1642619819494,0.25,136.71,136.65,10.51]
[1642619819794,3.176,136.71,136.66,0.25]
[1642619819994,0.25,136.71,136.66,0.25]
[1642619820197,42.85053501,136.72,136.66,0.25]
[1642619820594,116.16053501,136.72,136.66,0.25]
[1642619821096,116.16053501,136.72,136.65,10.51]
[1642619821295,2.926,136.71,136.64,24.8042]
[1642619821497,73.31,136.7,136.64,24.8042]
[1642619821697,73.56,136.7,136.6,2.926]
[1642619821894,2.926,136.69,136.59,10.51]
[1642619822096,2.926,136.69,136.6,6.0]
[1642619822295,73.31,136.67,136.6,6.0]
[1642619822496,73.31,136.67,136.61,0.25]
[1642619822794,0.25,136.66,136.61,0.25]
[1642619825002,0.25,136.67,136.61,0.25]
[1642619827205,0.25,136.67,136.6,28.5459]
[1642619828006,0.25,136.67,136.6,39.0559]
[1642619828734,0.25,136.67,136.61,0.25]
[1642619835544,2.927,136.7,136.61,0.25]
[1642619835740,0.25,136.69,136.61,13.687]
[1642619835942,2.926,136.76,136.61,19.732]
[1642619836142,2.926,136.77,136.62,6.0]
[1642619836340,2.926,136.78,136.63,13.436]
[1642619836544,43.81956724,136.77,136.64,28.02333104]
[1642619836745,2.926,136.76,136.65,0.25]
[1642619837144,2.926,136.76,136.65,22.9319]
[1642619837543,2.926,136.76,136.67,7.83950856]
[1642619837743,2.926,136.76,136.68,24.8487]
[1642619837946,43.81956724,136.77,136.68,30.8487]
[1642619838344,73.31,136.76,136.68,30.8487]
[1642619838945,0.25,136.75,136.68,30.8487]
[1642619839344,0.25,136.76,136.68,30.8487]
[1642619841248,0.25,136.76,136.69,12.81300111]
[1642619841448,0.25,136.76,136.69,15.73700111]
[1642619841752,6.25,136.81,136.7,30.5289]
[1642619841949,9.174,136.81,136.7,41.0389]
[1642619842153,6.0,136.8,136.7,41.0389]
[1642619842351,2.924,136.79,136.7,41.0389]
[1642619842549,3.174,136.79,136.7,41.0389]
[1642619843354,47.03660559,136.78,136.7,41.0389]
[1642619843854,0.25,136.77,136.7,41.0389]
[1642619844755,47.03660559,136.78,136.7,41.0389]
[1642619844954,47.03660559,136.78,136.71,2.924]
[1642619845353,47.03660559,136.78,136.72,0.25]
[1642619847556,47.03660559,136.78,136.72,6.25]
[1642619847757,6.0,136.8,136.72,6.25]
[1642619847955,6.0,136.8,136.72,16.76]
[1642619848155,2.924,136.84,136.73,2.924]
[1642619848358,111.9,136.9,136.74,10.51]
[1642619848359,2.924,136.85,136.74,10.51]
[1642619848556,9.72268305,136.89,136.75,24.0687]
[1642619848755,9.72268305,136.89,136.76,0.25]
[1642619848756,39.11976651,136.88,136.76,0.25]
[1642619848955,76.233,136.87,136.76,0.25]
[1642619849358,76.233,136.87,136.76,6.25]
[1642619849760,76.233,136.87,136.77,24.7421]
[1642619850360,0.25,136.86,136.77,24.7421]
[1642619850565,76.233,136.85,136.78,0.25]
[1642619850764,49.2100714,136.84,136.78,0.25]
[1642619854363,48.9600714,136.84,136.78,0.25]
[1642619854592,2.923,136.85,136.78,0.25]
[1642619854895,2.923,136.89,136.79,13.433]
[1642619855094,2.922,136.92,136.8,6.0]
[1642619855292,2.922,136.92,136.81,24.2968]
[1642619855493,40.96154834,136.91,136.81,24.2968]
[1642619855797,2.922,136.9,136.82,0.25]
[1642619856195,0.25,136.89,136.82,0.25]
[1642619856492,44.97705465,136.87,136.82,0.25]
[1642619856693,0.25,136.86,136.82,0.25]
[1642619857496,0.25,136.86,136.81,24.2968]
[1642619860198,0.25,136.86,136.82,0.25]
[1642619862607,44.22705465,136.87,136.82,0.25]
[1642619866811,2.923,136.91,136.82,0.25]
[1642619867016,116.64912602,136.92,136.82,10.069]
[1642619867214,113.72712602,136.92,136.83,23.2604]
[1642619867616,113.72712602,136.92,136.84,0.25]
[1642619867816,49.17605649,136.91,136.84,0.25]
[1642619868218,1.82712602,136.9,136.84,0.25]
[1642619868617,49.17605649,136.91,136.84,0.25]
[1642619869017,0.25,136.9,136.84,0.25]
[1642619871118,2.07712602,136.9,136.84,0.25]
[1642619871317,2.07712602,136.9,136.83,23.2604]
[1642619871516,6.0,136.89,136.81,2.922]
[1642619871717,8.922,136.89,136.8,6.0]
[1642619871916,1.82712602,136.88,136.79,6.0]
[1642619872117,2.923,136.87,136.79,6.25]
[1642619872320,40.04639828,136.86,136.79,9.173]
[1642619872918,1.82712602,136.85,136.79,31.7646]
[1642619876223,40.04639828,136.86,136.79,28.8416]
[1642619878929,42.96939828,136.86,136.79,28.8416]
[1642619879129,0.25,136.85,136.79,28.8416]
[1642619883539,1.82712602,136.84,136.79,28.8416]
[1642619884140,0.25,136.85,136.79,28.8416]
[1642619884542,2.07712602,136.85,136.79,28.8416]
[1642619885340,0.25,136.85,136.79,28.8416]
[1642619886640,2.07712602,136.85,136.79,28.8416]
[1642619887442,2.07712602,136.85,136.79,6.25]
[1642619887641,5.00012602,136.85,136.79,0.25]
[1642619889771,3.173,136.85,136.79,0.25]
[1642619890171,0.25,136.85,136.79,0.25]
[1642619899584,2.06865899,136.86,136.79,25.02686726]
[1642619899786,2.06865899,136.86,136.8,73.31]
[1642619899986,2.06865899,136.87,136.81,10.51]
[1642619900186,2.06865899,136.88,136.81,13.943]
[1642619900389,8.9685871,136.94,136.82,6.0]
[1642619900390,2.06865899,136.89,136.82,6.0]
[1642619900688,2.06865899,136.89,136.83,25.9011]
[1642619901089,2.06865899,136.89,136.84,6.0]
[1642619901289,2.06865899,136.9,136.85,0.25]
[1642619901590,2.06865899,136.9,136.86,10.51]
[1642619901788,2.06865899,136.91,136.87,0.25]
[1642619902186,48.72255799,136.91,136.87,0.25]
[1642619902389,2.06865899,136.91,136.87,0.25]
[1642619902788,2.06865899,136.92,136.87,0.25]
[1642619903289,44.8056199,136.92,136.87,0.25]
[1642619904390,44.8056199,136.92,136.86,10.51]
[1642619904590,2.06865899,136.91,136.86,10.51]
[1642619904889,44.8056199,136.92,136.86,10.51]
[1642619905491,2.06865899,136.91,136.86,10.51]
[1642619906893,45.65896091,136.92,136.86,10.51]
[1642619906894,47.7276199,136.92,136.86,10.51]
[1642619907095,2.06865899,136.91,136.86,10.51]
[1642619907695,3.89578501,136.91,136.86,10.51]
[1642619908193,0.25,136.9,136.86,10.51]
[1642619908393,3.89578501,136.91,136.86,10.51]
[1642619908994,2.06865899,136.91,136.86,10.51]
[1642619909194,2.06865899,136.91,136.87,0.25]
[1642619909397,2.06865899,136.92,136.87,0.25]
[1642619909794,2.06865899,136.93,136.87,0.25]
[1642619910196,43.11024897,136.93,136.87,0.25]
[1642619911693,0.25,136.92,136.87,0.25]
[1642619913898,2.06865899,136.93,136.87,0.25]
[1642619914098,2.06865899,136.93,136.88,10.51]
[1642619914298,2.06865899,136.94,136.89,0.25]
[1642619914732,1.82712602,136.95,136.89,10.76]
[1642619914931,39.55097461,136.96,136.89,10.76]
[1642619916133,0.25,136.95,136.89,10.76]
[1642619917635,37.48231562,136.96,136.89,10.76]
[1642619918737,39.30944164,136.96,136.89,10.76]
[1642619920941,41.37810063,136.96,136.89,10.76]
[1642619921142,39.30944164,136.96,136.89,10.76]
[1642619922243,2.06865899,136.97,136.9,2.92]
[1642619922441,3.89578501,136.98,136.9,32.263]
[1642619922644,3.89578501,136.98,136.91,0.25]
[1642619922841,1.82712602,136.98,136.91,0.25]
[1642619923241,47.33910161,136.97,136.91,0.25]
[1642619925546,1.82712602,136.98,136.91,0.25]
[1642619926643,39.73660745,136.98,136.91,0.25]
[1642619927645,41.80526644,136.98,136.91,0.25]
[1642619928647,3.89578501,136.97,136.91,0.25]
[1642619929647,38.72623953,136.95,136.91,0.25]
[1642619930047,38.72623953,136.95,136.9,0.25]
[1642619930346,38.72623953,136.95,136.89,6.25]
[1642619930847,40.55336555,136.95,136.88,27.904]
[1642619931049,42.62202454,136.95,136.89,0.25]
[1642619931248,3.17,136.94,136.88,2.92]
[1642619931649,1.82712602,136.93,136.84,23.5073]
[1642619931849,36.60165687,136.92,136.85,0.25]
[1642619932950,36.60165687,136.92,136.84,26.4293]
[1642619934252,36.60165687,136.92,136.85,0.25]
[1642619934853,36.60165687,136.92,136.85,6.25]
[1642619936752,36.60165687,136.92,136.86,2.922]
[1642619936954,36.60165687,136.92,136.86,13.432]
[1642619937156,36.60165687,136.92,136.87,0.25]
[1642619937956,36.60165687,136.92,136.87,6.25]
[1642619938359,2.06865899,136.95,136.87,6.25]
[1642619938558,2.06865899,136.95,136.88,25.741]
[1642619938757,2.06865899,136.95,136.89,0.25]
[1642619939357,39.06546592,136.94,136.89,0.25]
[1642619939756,41.13412491,136.94,136.88,25.741]
[1642619940163,41.13412491,136.94,136.89,0.25]
[1642619940886,41.13412491,136.94,136.88,25.741]
[1642619941086,41.13412491,136.94,136.89,0.25]
[1642619943091,41.13412491,136.94,136.88,22.821]
[1642619943388,41.13412491,136.94,136.89,0.25]
[1642619944990,41.13412491,136.94,136.88,22.321]
[1642619945192,2.06865899,136.93,136.87,2.92]
[1642619946591,2.06865899,136.93,136.88,0.25]
[1642619946993,2.06865899,136.93,136.87,0.25]
[1642619947592,2.06865899,136.93,136.86,10.51]
[1642619947796,2.06865899,136.93,136.83,25.426]
[1642619947797,2.06865899,136.92,136.83,25.426]
[1642619947992,2.06865899,136.91,136.84,0.25]
[1642619948192,4.99065899,136.91,136.84,0.25]
[1642619948594,35.70137087,136.9,136.84,0.25]
[1642619951595,35.70137087,136.9,136.83,22.506]
[1642619952801,38.62337087,136.9,136.83,22.506]
[1642619955003,40.69202986,136.9,136.83,22.506]
[1642619955204,37.77002986,136.9,136.83,22.506]
[1642619955411,35.70137087,136.9,136.83,22.506]
[1642619955606,40.69202986,136.9,136.83,22.506]
[1642619955806,37.77002986,136.9,136.84,0.25]
[1642619956404,0.25,136.89,136.84,0.25]
[1642619956806,0.25,136.89,136.81,13.432]
[1642619957005,0.25,136.89,136.82,6.0]
[1642619957205,0.25,136.89,136.82,6.25]
[1642619957405,0.25,136.89,136.82,0.25]
[1642619958010,2.31865899,136.89,136.82,0.25]
[1642619958406,0.25,136.89,136.82,0.25]
[1642619958906,0.25,136.89,136.82,24.8278]
[1642619962310,0.25,136.89,136.82,27.7498]
[1642619963114,0.25,136.89,136.83,10.51]
[1642619963314,0.25,136.89,136.84,0.25]
[1642619964713,35.70137087,136.9,136.84,0.25]
[1642619966213,4.99065899,136.92,136.84,0.25]
[1642619966414,2.06865899,136.92,136.85,10.51]
[1642619966613,2.06865899,136.94,136.86,2.922]
[1642619966814,2.06865899,136.95,136.87,33.2084]
[1642619967078,6.0,136.94,136.87,33.2084]
[1642619967316,47.87858062,136.93,136.88,3.17]
[1642619967514,47.87858062,136.93,136.89,10.51]
[1642619967814,47.87858062,136.93,136.9,0.25]
[1642619968217,47.87858062,136.93,136.9,10.76]
[1642619969412,47.87858062,136.93,136.9,10.51]
[1642619969813,3.03219997,136.92,136.9,10.51]
[1642619970013,47.87858062,136.93,136.9,10.51]
[1642619971014,3.03219997,136.92,136.9,10.51]
[1642619971217,3.03219997,136.91,136.9,10.51]
[1642619971615,3.03219997,136.91,136.9,10.76]
[1642619971816,3.03219997,136.92,136.9,10.76]
[1642619973016,47.87858062,136.93,136.9,10.76]
[1642619974221,47.87858062,136.93,136.91,0.25]
[1642619974619,6.06439994,136.92,136.9,10.51]
[1642619974918,6.06439994,136.92,136.91,0.25]
[1642619976021,6.06439994,136.92,136.9,10.51]
[1642619976218,6.06439994,136.92,136.91,0.25]
[1642619976419,6.06439994,136.92,136.9,10.51]
[1642619977219,6.06439994,136.92,136.91,0.25]
[1642619977921,6.06439994,136.92,136.9,10.51]
[1642619980225,47.87858062,136.93,136.87,36.1284]
[1642619980428,47.87858062,136.93,136.88,0.25]
[1642619990865,47.87858062,136.93,136.87,33.2084]
[1642619992565,49.94723961,136.93,136.87,33.2084]
[1642619992765,47.87858062,136.93,136.88,0.25]
[1642619993768,49.94723961,136.93,136.88,0.25]
[1642619994370,49.94723961,136.93,136.87,33.2084]
[1642619995068,49.94723961,136.93,136.88,0.25]
[1642619996075,49.94723961,136.93,136.87,33.2084]
[1642619996471,2.06865899,136.92,136.87,33.2084]
[1642619996673,49.94723961,136.93,136.87,33.2084]
[1642619997271,49.94723961,136.93,136.88,0.25]
[1642619997871,0.07509021,136.92,136.88,0.25]
[1642620002914,0.07509021,136.92,136.87,33.2084]
[1642620003111,0.07509021,136.92,136.84,33.3688]
[1642620003313,4.99065899,136.91,136.84,22.8588]
[1642620003514,39.7100589,136.9,136.82,10.51]
[1642620003711,41.53718492,136.9,136.82,10.51]
[1642620003911,1.82712602,136.89,136.82,10.51]
[1642620004712,39.7100589,136.9,136.83,0.25]
[1642620005112,1.82712602,136.89,136.83,0.25]
[1642620005812,39.7100589,136.9,136.82,10.51]
[1642620006012,41.53718492,136.9,136.82,10.51]
[1642620007119,6.0,136.89,136.83,0.25]
[1642620007716,6.07490348,136.89,136.83,0.25]
[1642620008921,6.07490348,136.89,136.82,10.51]
[1642620009323,6.07490348,136.89,136.83,0.25]
[1642620011427,73.31,136.88,136.82,10.51]
[1642620011629,75.38712602,136.88,136.8,2.922]
[1642620011829,4.75012602,136.87,136.77,4.93181018]
[1642620012056,6.81878501,136.87,136.75,2.00881018]
[1642620012230,75.13712602,136.86,136.75,2.00881018]
[1642620012432,54.64586036,136.85,136.73,2.00881018]
[1642620012631,73.31,136.84,136.73,10.93281018]
[1642620012830,2.924,136.83,136.73,6.0]
[1642620013030,11.102,136.83,136.73,6.0]
[1642620013232,73.31,136.82,136.73,6.0]
[1642620013436,49.35782882,136.8,136.73,6.0]
[1642620013633,57.42782882,136.8,136.73,6.0]
[1642620014035,0.25,136.79,136.74,0.25]
[1642620015033,49.35782882,136.8,136.74,0.25]
[1642620015235,2.924,136.81,136.74,10.76]
[1642620015436,2.924,136.84,136.74,34.9076]
[1642620015634,6.0,136.83,136.75,6.0]
[1642620016037,6.0,136.84,136.76,0.25]
[1642620016235,2.923,136.83,136.76,0.25]
[1642620016437,2.923,136.83,136.75,6.0]
[1642620017535,2.923,136.83,136.76,0.25]
[1642620017742,0.07446744,136.82,136.76,0.25]
[1642620017935,0.07446744,136.82,136.76,3.174]
[1642620018137,0.07446744,136.82,136.76,37.1705]
[1642620018336,0.07446744,136.82,136.77,6.0]
[1642620018539,0.07446744,136.82,136.78,2.924]
[1642620018736,0.07446744,136.82,136.78,10.76]
[1642620019564,0.07446744,136.82,136.78,10.51]
[1642620019737,0.07446744,136.82,136.77,2.923]
[1642620019939,0.07446744,136.82,136.75,10.51]
[1642620020141,0.07446744,136.82,136.75,16.76]
[1642620021937,0.07446744,136.82,136.75,16.51]
[1642620022838,0.07446744,136.82,136.76,23.0115]
[1642620023039,0.07446744,136.82,136.76,33.5215]
[1642620023240,0.07446744,136.82,136.76,36.4455]
[1642620024341,0.07446744,136.82,136.77,0.25]
[1642620027777,0.32440511,136.84,136.77,0.25]
[1642620029181,0.32440511,136.84,136.76,36.4455]
[1642620029781,76.233,136.83,136.71,24.56301018]
[1642620029982,76.233,136.83,136.72,6.0]
[1642620030181,1.82712602,136.82,136.71,22.5542]
[1642620030380,2.924,136.81,136.71,22.5542]
[1642620030583,10.12,136.81,136.71,22.5542]
[1642620030782,42.45586768,136.8,136.71,22.5542]
[1642620030982,2.924,136.79,136.71,22.5542]
[1642620032284,45.37986768,136.8,136.72,0.25]
[1642620032483,45.37986768,136.8,136.72,24.0609]
[1642620032685,42.45586768,136.8,136.72,24.0609]
[1642620032884,0.07421807,136.78,136.72,24.0609]
[1642620034685,0.07421807,136.78,136.72,23.8109]
[1642620034886,7.00021807,136.78,136.69,13.434]
[1642620035087,2.924,136.77,136.69,10.51]
[1642620035688,2.924,136.77,136.7,0.25]
[1642620036889,2.99821807,136.78,136.7,0.25]
[1642620037089,0.07421807,136.78,136.7,0.25]
[1642620037789,0.07409334,136.76,136.7,23.5263]
[1642620038488,0.07409334,136.76,136.7,23.2763]
[1642620038691,0.07409334,136.76,136.71,0.25]
[1642620042695,0.32403096,136.78,136.71,0.25]
[1642620044795,0.32403096,136.78,136.7,26.2003]
[1642620044995,0.32403096,136.78,136.71,0.25]
[1642620045395,0.32403096,136.78,136.7,23.2763]
[1642620045695,2.924,136.77,136.7,23.2763]
[1642620047800,0.07409334,136.76,136.69,10.51]
[1642620048099,0.07409334,136.76,136.7,0.25]
[1642620049303,0.07409334,136.76,136.7,17.6288396]
[1642620049499,0.07409334,136.76,136.71,24.5048]
[1642620049702,0.07409334,136.76,136.72,10.76]
[1642620050501,0.07409334,136.76,136.73,6.0]
[1642620050699,0.07409334,136.76,136.74,10.76]
[1642620050900,0.07409334,136.76,136.74,13.684]
[1642620051302,0.07409334,136.76,136.74,13.434]
[1642620052007,0.07409334,136.76,136.74,10.51]
[1642620052808,42.52989864,136.8,136.75,0.25]
[1642620054542,42.52989864,136.8,136.75,10.76]
[1642620054735,42.52989864,136.8,136.75,10.51]
[1642620055637,0.07403096,136.8,136.75,10.51]
[1642620057439,0.07403096,136.8,136.71,2.00881018]
[1642620057640,2.924,136.79,136.71,2.00881018]
[1642620057841,2.924,136.79,136.71,10.51]
[1642620059842,0.25,136.78,136.71,10.51]
[1642620060743,0.25,136.78,136.7,4.93281018]
[1642620060943,2.924,136.77,136.69,25.20481018]
[1642620061145,2.924,136.77,136.69,23.196]
[1642620061544,2.924,136.78,136.68,12.51881018]
[1642620061744,2.924,136.76,136.69,23.2358]
[1642620061945,73.31,136.76,136.68,12.51881018]
[1642620062148,2.924,136.75,136.67,2.00881018]
[1642620062746,2.924,136.75,136.66,26.73921018]
[1642620062944,2.924,136.75,136.66,50.88671018]
[1642620063246,2.924,136.75,136.67,0.25]
[1642620063445,0.25,136.74,136.67,0.25]
[1642620064651,48.76879409,136.72,136.67,0.25]
[1642620067853,0.07378134,136.71,136.67,0.25]
[1642620071659,0.07378134,136.71,136.64,4.93281018]
[1642620071857,0.07378134,136.71,136.64,2.924]
[1642620072102,4.75312602,136.7,136.64,2.924]
[1642620072302,10.69112602,136.7,136.61,2.00881018]
[1642620072701,10.76484493,136.7,136.59,12.51881018]
[1642620073099,10.76484493,136.7,136.59,10.51]
[1642620073100,8.93771891,136.7,136.59,10.51]
[1642620073399,8.93771891,136.7,136.59,13.437]
[1642620073600,8.93771891,136.7,136.6,23.0564]
[1642620073802,73.31,136.69,136.6,23.0564]
[1642620074001,122.06955842,136.68,136.6,23.0564]
[1642620074200,119.14255842,136.68,136.6,23.0564]
[1642620074400,2.927,136.67,136.6,23.0564]
[1642620074602,8.927,136.67,136.6,23.0564]
[1642620075603,6.0,136.67,136.61,0.25]
[1642620076304,45.83255842,136.68,136.61,0.25]
[1642620076904,45.83255842,136.68,136.6,23.0564]
[1642620077104,45.83255842,136.68,136.6,33.5664]
[1642620077708,0.07346911,136.66,136.6,33.5664]
[1642620080808,0.07346911,136.66,136.6,10.51]
[1642620081609,0.07346911,136.66,136.56,25.6282]
[1642620081810,2.928,136.65,136.56,2.927]
[1642620082011,8.398,136.65,136.56,2.927]
[1642620082310,1.82712602,136.64,136.52,437.36532753]
[1642620082510,47.80170821,136.62,136.5,2.00881018]
[1642620082812,2.928,136.61,136.48,12.51881018]
[1642620083010,2.928,136.61,136.48,10.51]
[1642620083215,1.82712602,136.6,136.48,10.51]
[1642620083412,2.928,136.59,136.48,10.51]
[1642620083611,11.167,136.59,136.48,10.51]
[1642620083811,6.0,136.58,136.48,10.51]
[1642620084014,39.07174085,136.57,136.48,10.51]
[1642620084414,73.31,136.56,136.46,23.9575]
[1642620084622,2.93,136.55,136.46,23.9575]
[1642620085012,0.25,136.54,136.46,23.9575]
[1642620087817,0.07265624,136.53,136.46,23.9575]
[1642620090219,3.00265624,136.53,136.46,23.9575]
[1642620090419,41.92205515,136.52,136.46,23.9575]
[1642620090621,47.92205515,136.52,136.46,23.9575]
[1642620092448,47.92205515,136.52,136.43,2.93]
[1642620092750,3.25253104,136.51,136.43,2.93]
[1642620094347,3.25253104,136.51,136.44,10.51]
[1642620094548,0.32253104,136.51,136.44,10.51]
[1642620095349,0.07253104,136.51,136.44,10.51]
[1642620095548,0.07253104,136.51,136.45,3.18]
[1642620095753,0.07253104,136.51,136.46,10.51]
[1642620096151,0.07253104,136.51,136.47,0.25]
[1642620096349,0.07253104,136.51,136.47,3.18]
[1642620097052,0.07253104,136.51,136.47,27.5469]
[1642620097852,0.07246843,136.55,136.48,10.51]
[1642620098054,0.07246843,136.55,136.49,10.08063227]
[1642620098259,0.07246843,136.55,136.5,10.51]
[1642620098451,0.07246843,136.55,136.51,2.928]
[1642620099153,0.07246843,136.55,136.52,0.25]
[1642620099551,0.07246843,136.55,136.52,10.76]
[1642620099753,0.07246843,136.55,136.53,50.656]
[1642620100151,0.07246843,136.55,136.54,0.25]
[1642620100553,0.07246843,136.55,136.54,25.25]
[1642620102353,0.00246843,136.55,136.54,25.25]
[1642620102552,2.06865899,136.7,136.57,73.31]
[1642620102754,2.929,136.71,136.58,10.76]
[1642620102954,2.927,136.75,136.6,131.37]
[1642620103155,2.926,136.73,136.61,19.434]
[1642620103357,2.926,136.75,136.61,19.684]
[1642620103552,48.02583644,136.74,136.62,26.35949353]
[1642620103753,48.02583644,136.74,136.63,145.056]
[1642620103953,2.926,136.81,136.63,158.91838019]
[1642620104156,2.924,136.79,136.64,48.69918019]
[1642620104354,6.0,136.8,136.65,13.434]
[1642620104556,2.924,136.79,136.65,19.684]
[1642620104756,2.924,136.79,136.65,19.944]